bitfinex/quotes_ETHUSD_20241009
["timestamp","ask_amount","ask_price","bid_price","bid_amount"]
[1728516280508,13.52011519,2368.7,2368.6,0.1178598]
[1728516280941,13.52010982,2368.7,2368.6,0.1178598]
[1728516281511,11.31149673,2368.7,2368.6,0.1178598]
[1728516282155,20.18240994,2368.7,2368.6,0.1178598]
[1728516283145,22.39072413,2368.7,2368.6,0.1178598]
[1728516284953,16.17245962,2368.7,2368.6,0.1178598]
[1728516285124,17.93900853,2368.7,2368.6,0.1178598]
[1728516285453,17.93882627,2368.7,2368.6,0.1178598]
[1728516288158,9.06791306,2368.7,2368.6,0.1178598]
[1728516289256,0.07982641,2368.7,2368.6,0.1178598]
[1728516289554,0.07982641,2368.7,2368.6,0.8942598]
[1728516291939,0.07982641,2368.7,2368.6,1.40589178]
[1728516292154,0.07982641,2368.7,2368.6,5.62779178]
[1728516293123,0.07982641,2368.7,2368.6,6.17779178]
[1728516296562,0.07982641,2368.7,2368.6,10.760933]
[1728516303066,0.07982641,2368.7,2368.6,14.77088332]
[1728516314163,0.07982641,2368.7,2368.6,10.760933]
[1728516314366,0.07982641,2368.7,2368.6,10.210933]
[1728516315701,0.07982641,2368.7,2368.6,10.760933]
[1728516315904,0.07982641,2368.7,2368.6,6.17779178]
[1728516316108,0.07982641,2368.7,2368.6,0.1178598]
[1728516324240,4.30154641,2368.7,2368.6,0.1178598]
[1728516324401,5.08364641,2368.7,2368.6,0.1178598]
[1728516325025,0.86192641,2368.7,2368.6,0.1178598]
[1728516325205,1.37027605,2368.7,2368.6,0.1178598]
[1728516326941,0.58817605,2368.7,2368.6,0.1178598]
[1728516327143,0.07982641,2368.7,2368.6,0.1178598]
[1728516332955,0.07982641,2368.7,2368.6,4.3397598]
[1728516333131,0.07982641,2368.7,2368.6,5.1357598]
[1728516333664,0.07982641,2368.7,2368.6,9.69442668]
[1728516334345,0.07982641,2368.7,2368.6,5.6857598]
[1728516334508,0.07982641,2368.7,2368.6,9.78840806]
[1728516335922,0.07982641,2368.7,2368.6,5.6857598]
[1728516343044,0.07982641,2368.7,2368.6,10.26890102]
[1728516343349,0.07982641,2368.7,2368.6,11.15395949]
[1728516343524,0.07982641,2368.7,2368.6,46.15395949]
[1728516345664,0.07982641,2368.7,2368.6,45.26890102]
[1728516345962,0.07982641,2368.7,2368.6,50.25635364]
[1728516347878,0.07982641,2368.7,2368.6,15.25635364]
[1728516350983,0.07982641,2368.7,2368.6,14.37154928]
[1728516351572,0.07982641,2368.7,2368.6,11.15347019]
[1728516352084,0.07982641,2368.7,2368.6,46.15347019]
[1728516353864,0.07982641,2368.7,2368.6,11.15347019]
[1728516358294,0.07982641,2368.7,2368.6,0.1178598]
[1728516359602,0.07982641,2368.7,2368.6,7.52894329]
[1728516359898,0.07982641,2368.7,2368.6,9.16868367]
[1728516364604,0.07982641,2368.7,2368.6,4.8897598]
[1728516367502,0.18367086,2368.7,2368.6,4.8897598]
[1728516376528,0.18367086,2368.7,2368.6,5.77439542]
[1728516385670,0.18367086,2368.7,2368.6,7.0467299]
[1728516387135,0.18367086,2368.7,2368.6,8.37593042]
[1728516388268,0.18367086,2368.7,2368.6,10.67779322]
[1728516388469,0.18367086,2368.7,2368.6,45.67779322]
[1728516388865,0.18367086,2368.7,2368.6,45.67793084]
[1728516389873,0.18367086,2368.7,2368.6,44.3485927]
[1728516390556,0.18367086,2368.7,2368.6,45.67797813]
[1728516391156,0.18367086,2368.7,2368.6,44.3485927]
[1728516391543,0.18367086,2368.7,2368.6,43.0216226]
[1728516391749,0.18367086,2368.7,2368.6,44.35097972]
[1728516391946,0.18367086,2368.7,2368.6,43.0216226]
[1728516392578,0.18367086,2368.7,2368.6,44.35104071]
[1728516393871,0.18367086,2368.7,2368.6,43.0216226]
[1728516394374,0.18367086,2368.7,2368.6,44.35101536]
[1728516394757,0.18367086,2368.7,2368.6,43.0216226]
[1728516395241,0.18367086,2368.7,2368.6,44.35102792]
[1728516397974,0.18367086,2368.7,2368.6,44.79413651]
[1728516398278,0.18367086,2368.7,2368.6,46.1237036]
[1728516398577,0.18367086,2368.7,2368.6,44.35120815]
[1728516398965,0.18367086,2368.7,2368.6,43.0216226]
[1728516399343,0.18367086,2368.7,2368.6,44.79444329]
[1728516400695,0.18367086,2368.7,2368.6,44.79442044]
[1728516402357,0.18367086,2368.7,2368.6,9.79442044]
[1728516402985,0.18367086,2368.7,2368.6,8.96442044]
[1728516403850,1.00987086,2368.7,2368.6,3.22035804]
[1728516404164,1.00987086,2368.7,2368.6,1.89065764]
[1728516405055,1.00987086,2368.7,2368.6,0.1178598]
[1728516408405,4.40539086,2368.7,2368.6,0.1178598]
[1728516408603,5.19219086,2368.7,2368.6,0.1178598]
[1728516408817,6.13356495,2368.7,2368.6,0.1178598]
[1728516409010,1.91184495,2368.7,2368.6,0.1178598]
[1728516413782,6.13356495,2368.7,2368.6,0.1178598]
[1728516414203,1.91184495,2368.7,2368.6,0.1178598]
[1728516414407,6.13356495,2368.7,2368.6,0.1178598]
[1728516415488,7.98344844,2368.7,2368.6,0.1178598]
[1728516415717,10.98344844,2368.7,2368.6,0.1178598]
[1728516417383,9.13356495,2368.7,2368.6,0.1178598]
[1728516417586,10.98344844,2368.7,2368.6,0.1178598]
[1728516420907,9.13356495,2368.7,2368.6,0.1178598]
[1728516421110,10.98344844,2368.7,2368.6,0.1178598]
[1728516421293,21.61611997,2368.7,2368.6,0.1178598]
[1728516421496,19.85436165,2368.7,2368.6,0.1178598]
[1728516421896,21.61611997,2368.7,2368.6,0.1178598]
[1728516422226,19.85436165,2368.7,2368.6,0.1178598]
[1728516422800,21.61611997,2368.7,2368.6,0.1178598]
[1728516423434,19.85436165,2368.7,2368.6,0.1178598]
[1728516429139,30.75436165,2368.7,2368.6,0.1178598]
[1728516429340,32.51611997,2368.7,2368.6,0.1178598]
[1728516429551,32.51229445,2368.7,2368.6,0.1178598]
[1728516429714,32.95241728,2368.7,2368.6,0.1178598]
[1728516431740,30.75436165,2368.7,2368.6,0.1178598]
[1728516432243,32.51147504,2368.7,2368.6,0.1178598]
[1728516435444,32.510813,2368.7,2368.6,0.1178598]
[1728516439846,28.90447816,2368.7,2368.6,0.1178598]
[1728516440057,27.75436165,2368.7,2368.6,0.1178598]
[1728516441318,30.75436165,2368.7,2368.6,0.1178598]
[1728516444659,4.22457,2367.1,2367.0,0.88244617]
[1728516444863,7.22493,2366.9,2366.3,0.1178598]
[1728516445007,9.07481349,2366.9,2366.3,0.1178598]
[1728516445227,7.22522,2366.8,2366.3,0.1178598]
[1728516445423,4.22534,2366.7,2366.4,0.7989]
[1728516445655,11.45049,2366.8,2366.4,0.7989]
[1728516445966,4.22551,2366.6,2366.4,0.7989]
[1728516448048,8.45108,2366.6,2366.4,0.7989]
[1728516448899,4.22551,2366.6,2366.4,0.7989]
[1728516449160,4.22564,2366.5,2366.4,0.7989]
[1728516451230,5.16701409,2366.5,2366.3,0.1178598]
[1728516451426,4.22582,2366.4,2366.3,0.1178598]
[1728516454774,4.22564,2366.5,2366.4,0.7766]
[1728516456945,4.22547,2366.6,2366.4,0.7766]
[1728516457147,4.22564,2366.5,2366.4,0.7766]
[1728516457681,4.32344281,2366.5,2366.4,0.7766]
[1728516458661,0.09780281,2366.5,2366.4,0.7766]
[1728516458983,0.09780281,2366.5,2366.4,1.3266]
[1728516460061,0.09780281,2366.5,2366.4,1.4111066]
[1728516461725,0.09780281,2366.5,2366.4,9.65435712]
[1728516461892,0.7822,2366.4,2366.3,0.1178598]
[1728516462074,9.02545052,2366.4,2366.3,0.1178598]
[1728516462276,4.22725,2365.6,2365.5,0.00080422]
[1728516462516,9.02688052,2365.6,2365.5,0.00080422]
[1728516462813,4.22725,2365.6,2365.5,0.00080422]
[1728516463178,12.49185757,2365.6,2365.5,0.00080422]
[1728516465301,13.24235757,2365.6,2365.5,0.00080422]
[1728516466794,8.47442705,2365.6,2365.5,0.00080422]
[1728516468239,7.22725,2365.6,2365.5,0.00080422]
[1728516468424,4.22725,2365.6,2365.5,0.00080422]
[1728516470010,4.22709,2365.7,2365.5,0.00080422]
[1728516470841,7.22683,2365.9,2365.5,0.75190422]
[1728516470842,11.45364,2365.9,2365.5,0.75190422]
[1728516471137,4.22712,2365.7,2365.5,0.75190422]
[1728516471742,4.22725,2365.6,2365.5,0.75190422]
[1728516471899,5.072687,2365.6,2365.5,0.00080422]
[1728516476252,0.845437,2365.6,2365.5,0.00080422]
[1728516476554,8.4543,2365.7,2365.5,0.00080422]
[1728516476737,4.22712,2365.7,2365.5,0.00080422]
[1728516477121,4.22696,2365.8,2365.5,0.00080422]
[1728516477320,8.95085622,2366.5,2365.6,0.8247]
[1728516477531,4.22647,2366.1,2365.6,0.8247]
[1728516477712,4.22623,2366.2,2365.6,5.05189]
[1728516478063,4.22638,2366.1,2365.6,5.05189]
[1728516478762,4.22623,2366.2,2365.6,5.05189]
[1728516479047,8.45252,2366.2,2365.6,5.05189]
[1728516480028,4.22623,2366.2,2365.6,5.05189]
[1728516480336,4.22597,2366.4,2365.8,4.22684]
[1728516480543,0.09780281,2366.5,2366.2,0.7631]
[1728516481424,0.09780281,2366.5,2366.2,4.98916]
[1728516482152,0.09780281,2366.5,2366.2,0.7631]
[1728516482957,0.09780281,2366.5,2366.2,4.98913]
[1728516483128,0.09780281,2366.5,2366.2,5.910668]
[1728516483326,0.09780281,2366.5,2366.2,1.684638]
[1728516484114,4.22592,2366.4,2365.9,0.7945]
[1728516484317,4.22601,2366.3,2365.9,0.7945]
[1728516484620,4.2261,2366.3,2365.9,0.7945]
[1728516485929,4.22621,2366.2,2365.9,0.7945]
[1728516486123,5.071423,2366.2,2365.9,0.7945]
[1728516487562,0.845213,2366.2,2365.9,0.7945]
[1728516488459,4.22604,2366.3,2365.9,0.7945]
[1728516489650,4.32345281,2366.5,2366.0,4.22653]
[1728516489853,3.09780281,2366.5,2366.1,4.22635]
[1728516490663,7.32346281,2366.5,2366.0,4.22654]
[1728516490869,1.15490328,2366.4,2366.0,4.22654]
[1728516491229,1.15490328,2366.4,2366.1,4.22632]
[1728516491564,1.15490328,2366.4,2366.0,4.22654]
[1728516491936,3.09780281,2366.5,2366.1,4.22634]
[1728516492130,3.09780281,2366.5,2366.0,4.22654]
[1728516492355,3.09780281,2366.5,2366.0,8.45299]
[1728516492564,7.32345281,2366.5,2366.0,4.22645]
[1728516492864,3.09780281,2366.5,2366.0,4.2264]
[1728516493070,3.09780281,2366.5,2366.1,4.22631]
[1728516493229,3.09780281,2366.5,2366.1,4.22625]
[1728516493429,7.32349281,2366.5,2366.0,8.45284]
[1728516493839,3.09780281,2366.5,2366.0,8.45284]
[1728516494371,3.09780281,2366.5,2366.1,4.22634]
[1728516495168,0.09780281,2366.5,2366.2,4.22617]
[1728516496048,0.09780281,2366.5,2366.1,4.22636]
[1728516496260,0.09780281,2366.5,2366.0,4.2264]
[1728516496261,4.32346281,2366.5,2366.0,4.2264]
[1728516496460,0.09780281,2366.5,2366.1,4.22631]
[1728516497989,0.09780281,2366.5,2366.1,4.22626]
[1728516498395,0.09780281,2366.5,2366.1,4.22623]
[1728516498694,0.09780281,2366.5,2366.1,8.4525]
[1728516498878,0.09780281,2366.5,2366.1,4.22623]
[1728516499208,0.09780281,2366.5,2366.2,0.7552]
[1728516499498,0.09780281,2366.5,2366.2,4.98133]
[1728516499669,0.09780281,2366.5,2366.3,4.22593]
[1728516501194,0.09780281,2366.5,2366.2,4.98133]
[1728516502962,0.09780281,2366.5,2366.2,4.98128]
[1728516508101,0.09780281,2366.5,2366.3,0.63451714]
[1728516508265,0.09780281,2366.5,2366.4,4.22582]
[1728516509465,0.09780281,2366.5,2366.3,9.00178]
[1728516509671,0.09780281,2366.5,2366.4,4.22582]
[1728516512090,0.09780281,2366.5,2366.3,4.7759]
[1728516512296,0.09780281,2366.5,2366.3,9.00182]
[1728516513309,0.09780281,2366.5,2366.2,1.70554111]
[1728516513310,0.09780281,2366.5,2366.2,0.7552]
[1728516513522,0.09780281,2366.5,2366.3,4.22598]
[1728516514021,0.09780281,2366.5,2366.2,4.98137]
[1728516514767,0.09780281,2366.5,2366.2,0.7552]
[1728516514980,0.09780281,2366.5,2366.3,4.22599]
[1728516515806,0.09780281,2366.5,2366.4,4.22582]
[1728516516984,0.09780281,2366.5,2366.2,0.7552]
[1728516517173,0.09780281,2366.5,2366.3,4.22591]
[1728516521415,0.09780281,2366.5,2366.2,4.98128]
[1728516521722,0.09780281,2366.5,2366.4,4.22582]
[1728516525228,0.09780281,2366.5,2366.4,4.33582]
[1728516526229,0.09780281,2366.5,2366.4,5.64512]
[1728516526436,0.09780281,2366.5,2366.4,9.66255052]
[1728516527711,0.09780281,2366.5,2366.4,5.64512]
[1728516527936,0.09780281,2366.5,2366.4,7.58057956]
[1728516542391,0.09780281,2366.5,2366.4,0.11]
[1728516542576,0.09780281,2366.5,2366.4,4.33582]
[1728516547728,0.19196384,2366.5,2366.4,4.33582]
[1728516553508,0.19196384,2366.5,2366.4,0.11]
[1728516556273,0.19196384,2366.5,2366.4,4.33582]
[1728516556979,0.19196384,2366.5,2366.4,0.11]
[1728516560477,0.19196384,2366.5,2366.4,0.10918282]
[1728516561562,0.19196384,2366.5,2366.4,5.10320282]
[1728516561782,0.19196384,2366.5,2366.4,6.22147631]
[1728516561968,0.19196384,2366.5,2366.4,4.33500282]
[1728516562173,0.19196384,2366.5,2366.4,0.10918282]
[1728516587007,1.51083592,2366.5,2366.4,0.10918282]
[1728516588534,0.19196384,2366.5,2366.4,5.13030282]
[1728516588754,0.19196384,2366.5,2366.4,5.68030282]
[1728516588949,0.19196384,2366.5,2366.4,6.94458569]
[1728516594171,0.19196384,2366.5,2366.4,8.79820774]
[1728516598956,0.19196384,2366.5,2366.4,9.68111158]
[1728516599110,0.19196384,2366.5,2366.4,10.1225635]
[1728516599858,0.19196384,2366.5,2366.4,7.83204592]
[1728516600714,0.19196384,2366.5,2366.4,6.94458569]
[1728516601468,0.19196384,2366.5,2366.4,5.68030282]
[1728516602551,1.02356384,2366.5,2366.4,0.10918282]
[1728516602851,0.19196384,2366.5,2366.4,0.10918282]
[1728516603039,0.19196384,2366.5,2366.4,4.33500282]
[1728516604020,0.19196384,2366.5,2366.4,4.88500282]
[1728516605758,0.19196384,2366.5,2366.4,0.10918282]
[1728516612542,0.19196384,2366.5,2366.4,0.65918282]
[1728516612738,0.19196384,2366.5,2366.4,4.88500282]
[1728516614877,0.19196384,2366.5,2366.4,6.98211833]
[1728516615456,0.19196384,2366.5,2366.4,7.86957856]
[1728516615976,0.19196384,2366.5,2366.4,6.98211833]
[1728516617456,2.10597208,2367.0,2366.4,2.75629833]
[1728516617658,1.31887208,2367.0,2366.9,4.22493]
[1728516617859,0.7846,2367.3,2366.9,4.22493]
[1728516617860,2.10347208,2367.3,2367.0,4.22475]
[1728516618190,2.10347208,2367.3,2367.0,6.07829205]
[1728516618191,0.7846,2367.3,2367.0,6.07829205]
[1728516619678,0.7846,2367.3,2367.0,10.30295205]
[1728516619881,1.31887208,2367.4,2367.1,4.22456]
[1728516620215,2.14227208,2367.5,2367.1,4.22456]
[1728516620370,1.31887208,2367.6,2367.2,6.07784205]
[1728516620704,6.36581208,2367.7,2367.3,4.22404]
[1728516621503,5.04694,2367.7,2367.3,4.22404]
[1728516622401,0.09435332,2367.6,2367.3,4.22404]
[1728516622602,0.09435332,2367.6,2367.4,1.85362205]
[1728516622807,0.09435332,2367.6,2367.5,4.22386]
[1728516623010,0.09435332,2367.6,2367.4,6.89545205]
[1728516623217,4.22333,2367.8,2367.4,6.89545205]
[1728516623417,0.09435332,2367.5,2367.4,6.89545205]
[1728516624019,4.22333,2367.8,2367.4,1.85362205]
[1728516624316,0.505613,2367.7,2367.4,1.85362205]
[1728516624616,0.8181,2367.6,2367.2,6.89567205]
[1728516625174,0.09435332,2367.5,2367.1,0.10918282]
[1728516625398,0.8181,2367.4,2367.1,0.10918282]
[1728516625781,0.09454885,2367.3,2367.1,0.10918282]
[1728516631785,0.09454885,2367.3,2367.2,0.10918282]
[1728516634087,0.09454885,2367.3,2367.2,5.11618282]
[1728516634312,0.7621,2367.7,2367.2,6.23561531]
[1728516634518,0.7621,2367.7,2367.3,4.22417]
[1728516635198,4.22325,2367.9,2367.5,1.85362205]
[1728516635391,5.03235,2367.9,2367.5,1.85362205]
[1728516635593,1.245235,2367.8,2367.5,6.07740205]
[1728516635813,0.8091,2367.9,2367.5,6.07740205]
[1728516636812,5.03225,2367.9,2367.5,6.07740205]
[1728516637218,0.09456,2367.8,2367.5,6.07740205]
[1728516637432,0.09456,2367.8,2367.6,4.22363]
[1728516637639,0.09456,2367.8,2367.7,4.2235]
[1728516637823,0.09456,2367.8,2367.6,5.10206282]
[1728516638000,5.02361,2368.1,2367.6,5.10206282]
[1728516638200,0.09472398,2367.7,2367.6,5.10206282]
[1728516638401,5.02361,2368.1,2367.6,5.10206282]
[1728516638626,0.09472398,2367.7,2367.6,5.10206282]
[1728516639229,5.02361,2368.1,2367.6,5.10206282]
[1728516639738,0.09479334,2368.0,2367.6,5.10206282]
[1728516640837,0.09479334,2368.0,2367.7,0.10918282]
[1728516643837,4.31777334,2368.0,2367.7,0.10918282]
[1728516645641,4.31778334,2368.0,2367.7,0.10918282]
[1728516648253,5.07442715,2367.9,2367.8,0.10918282]
[1728516660763,6.83292326,2367.9,2367.8,0.10918282]
[1728516661666,5.07442715,2367.9,2367.8,0.10918282]
[1728516662026,6.83292326,2367.9,2367.8,0.10918282]
[1728516662259,8.34410813,2367.9,2367.8,0.10918282]
[1728516664853,6.58561202,2367.9,2367.8,0.10918282]
[1728516665245,8.3499078,2367.9,2367.8,0.10918282]
[1728516665581,6.58561202,2367.9,2367.8,0.10918282]
[1728516666064,8.35007043,2367.9,2367.8,0.10918282]
[1728516666266,8.78792538,2367.9,2367.8,0.10918282]
[1728516666488,6.58561202,2367.9,2367.8,0.10918282]
[1728516666638,8.35018587,2367.9,2367.8,0.10918282]
[1728516667184,8.78792538,2367.9,2367.8,0.10918282]
[1728516667546,6.58561202,2367.9,2367.8,0.10918282]
[1728516667846,8.78792538,2367.9,2367.8,0.10918282]
[1728516668467,8.79195423,2367.9,2367.8,0.10918282]
[1728516670691,6.58561202,2367.9,2367.8,0.10918282]
[1728516671153,8.79195423,2367.9,2367.8,0.10918282]
[1728516681401,8.79210987,2367.9,2367.8,0.10918282]
[1728516682057,6.58561202,2367.9,2367.8,0.10918282]
[1728516682258,8.79213885,2367.9,2367.8,0.10918282]
[1728516687922,8.79216062,2367.9,2367.8,0.10918282]
[1728516688330,6.58561202,2367.9,2367.8,0.10918282]
[1728516688494,8.79265764,2367.9,2367.8,0.10918282]
[1728516689020,6.58561202,2367.9,2367.8,0.10918282]
[1728516693427,9.23719192,2367.9,2367.8,0.10918282]
[1728516694285,12.23719192,2367.9,2367.8,0.10918282]
[1728516694549,14.09084157,2367.9,2367.8,0.10918282]
[1728516698425,14.0907635,2367.9,2367.8,0.10918282]
[1728516699891,12.01479527,2367.9,2367.8,0.10918282]
[1728516700329,11.43923407,2367.9,2367.8,0.10918282]
[1728516706394,14.08947383,2367.9,2367.8,0.10918282]
[1728516706676,11.43923407,2367.9,2367.8,0.10918282]
[1728516706974,14.08942975,2367.9,2367.8,0.10918282]
[1728516707173,11.43923407,2367.9,2367.8,0.10918282]
[1728516708778,14.08918105,2367.9,2367.8,0.10918282]
[1728516708953,11.43923407,2367.9,2367.8,0.10918282]
[1728516712197,14.53059967,2367.9,2367.8,0.10918282]
[1728516712357,11.43923407,2367.9,2367.8,0.10918282]
[1728516712696,14.53059967,2367.9,2367.8,0.10918282]
[1728516713499,11.43923407,2367.9,2367.8,0.10918282]
[1728516717593,6.96663464,2367.9,2367.8,0.10918282]
[1728516717793,6.52542946,2367.9,2367.8,0.87878282]
[1728516718200,6.08403675,2367.9,2367.8,0.87878282]
[1728516719587,4.31822715,2367.9,2367.8,0.87878282]
[1728516719910,6.08387096,2367.9,2367.8,0.87878282]
[1728516720210,6.08386271,2367.9,2367.8,0.87878282]
[1728516720712,6.52523902,2367.9,2367.8,0.87878282]
[1728516721011,4.20904433,2367.9,2367.8,0.7696]
[1728516721413,5.97459487,2367.9,2367.8,0.7696]
[1728516723269,5.97471614,2367.9,2367.8,0.7696]
[1728516726612,4.20904433,2367.9,2367.8,0.7696]
[1728516727206,0.09507715,2367.9,2367.8,0.7696]
[1728516727513,0.09507715,2367.9,2367.8,1.0319222]
[1728516730996,0.09507715,2367.9,2367.8,0.7696]
[1728516733029,10.21112181,2368.2,2367.8,0.7696]
[1728516733030,5.98837181,2368.2,2367.8,0.7696]
[1728516733230,0.08908051,2367.9,2367.8,0.7696]
[1728516733455,8.44542,2368.2,2367.8,0.7696]
[1728516733609,0.08908051,2367.9,2367.8,0.7696]
[1728516733934,4.22287,2368.1,2367.8,1.45426321]
[1728516733935,4.22299,2368.0,2367.8,1.45426321]
[1728516734139,4.31223051,2367.9,2367.8,0.7696]
[1728516734435,0.08908051,2367.9,2367.8,0.7696]
[1728516735195,4.2228,2368.1,2367.8,0.7696]
[1728516735499,4.2228,2368.1,2367.7,4.3079502]
[1728516735500,4.2228,2368.1,2368.0,0.8267]
[1728516738312,4.22302,2368.0,2367.7,0.8065]
[1728516738734,4.22325,2367.9,2367.7,0.8065]
[1728516738942,4.22273,2368.2,2367.7,0.8065]
[1728516739122,4.22283,2368.1,2367.7,0.8065]
[1728516739445,4.22297,2368.0,2367.8,0.52389395]
[1728516739658,2.66042205,2368.1,2367.7,0.7642]
[1728516739846,4.22332,2367.8,2367.7,0.7642]
[1728516740551,4.22297,2368.0,2367.7,0.7642]
[1728516741719,4.22315,2367.9,2367.7,0.7642]
[1728516742236,0.08916914,2367.8,2367.7,0.7642]
[1728516749050,4.22297,2368.0,2367.7,0.7642]
[1728516749241,0.08916914,2367.8,2367.7,0.7642]
[1728516749442,4.22297,2368.0,2367.7,1.262986]
[1728516749722,0.08910581,2367.8,2367.7,0.7642]
[1728516749867,4.22297,2368.0,2367.7,0.7642]
[1728516750071,0.08910581,2367.8,2367.7,0.7642]
[1728516750238,4.22297,2368.0,2367.7,0.7642]
[1728516750434,0.08910581,2367.8,2367.7,0.7642]
[1728516750744,4.22297,2368.0,2367.7,1.262986]
[1728516751261,0.08910581,2367.9,2367.7,1.262986]
[1728516752673,0.08910581,2367.9,2367.7,4.722266]
[1728516752976,4.22275,2368.2,2367.8,0.7962]
[1728516753268,4.22275,2368.2,2367.8,5.0195]
[1728516753485,4.22275,2368.2,2367.9,0.9741696]
[1728516755476,4.22275,2368.2,2367.8,0.7962]
[1728516756155,4.22275,2368.2,2367.8,5.0195]
[1728516757211,0.08910581,2368.1,2367.8,5.0195]
[1728516757388,0.08910581,2368.1,2367.8,0.7962]
[1728516759571,0.08910581,2368.1,2367.8,5.01951]
[1728516759780,5.98811181,2368.3,2368.0,0.815]
[1728516759971,0.08910581,2368.2,2368.0,0.815]
[1728516760177,5.98811181,2368.3,2368.0,0.815]
[1728516760353,0.08910581,2368.2,2368.0,0.815]
[1728516760755,5.98811181,2368.3,2368.0,0.815]
[1728516761005,0.08910581,2368.2,2368.0,0.815]
[1728516761218,4.22264,2368.2,2368.0,0.815]
[1728516761371,0.08917547,2368.1,2368.0,0.815]
[1728516763613,0.08917547,2368.1,2368.0,1.318831]
[1728516763777,1.76567181,2368.4,2368.0,7.13042305]
[1728516763972,6.42756245,2368.5,2368.2,3.23532205]
[1728516763973,0.08921978,2368.3,2368.2,3.23532205]
[1728516764179,5.98749181,2368.7,2368.2,7.45781205]
[1728516764381,0.08921978,2368.6,2368.2,7.45781205]
[1728516764618,0.08921978,2368.6,2368.3,0.74578121]
[1728516767717,0.08921978,2368.6,2368.2,5.60429]
[1728516768820,0.08921978,2368.6,2368.5,0.777]
[1728516768983,8.85305341,2368.9,2368.4,6.07587205]
[1728516769189,0.08921978,2368.8,2368.7,0.777]
[1728516772786,0.08921978,2368.8,2368.7,4.99872]
[1728516772986,0.08921978,2368.8,2368.7,6.66964221]
[1728516773223,4.22084,2369.2,2368.8,0.55]
[1728516774223,4.22069,2369.3,2368.9,0.8174]
[1728516774928,13.07361341,2369.4,2368.9,0.8174]
[1728516775098,4.22068,2369.3,2368.9,0.8174]
[1728516775297,4.22068,2369.3,2369.0,0.558884]
[1728516777534,17.29425341,2369.4,2369.0,0.558884]
[1728516777830,13.07361341,2369.4,2369.0,0.558884]
[1728516778031,17.29418341,2369.4,2369.0,0.558884]
[1728516778338,4.22056,2369.4,2369.0,0.558884]
[1728516778543,8.44116,2369.4,2369.1,0.5597644]
[1728516779236,4.22067,2369.3,2369.1,0.5597644]
[1728516779439,4.22067,2369.3,2369.0,0.558884]
[1728516781938,4.2213,2369.0,2368.7,1.88762221]
[1728516782095,8.44263,2369.0,2368.7,0.7802]
[1728516782420,4.2213,2369.0,2368.7,0.7802]
[1728516782593,8.44257,2369.0,2368.7,0.7802]
[1728516782899,4.22127,2369.0,2368.7,0.7802]
[1728516783101,4.22102,2369.1,2368.7,1.72377055]
[1728516783541,5.04965,2369.2,2368.7,5.94548055]
[1728516783741,4.22103,2369.1,2368.7,1.72377055]
[1728516784407,4.22103,2369.1,2368.8,0.59456506]
[1728516785110,4.22127,2369.0,2368.7,0.7802]
[1728516785308,4.22103,2369.1,2368.7,0.7802]
[1728516786133,8.44217,2369.1,2368.7,0.7802]
[1728516786522,4.22103,2369.1,2368.7,0.7802]
[1728516786722,4.22103,2369.1,2368.7,1.90912376]
[1728516787310,0.08752656,2369.0,2368.7,1.90912376]
[1728516788364,4.30871656,2369.0,2368.7,1.90912376]
[1728516788664,4.30871656,2369.0,2368.7,0.7802]
[1728516791639,0.08752656,2369.0,2368.8,4.22153]
[1728516791866,8.44151,2369.3,2368.8,4.22153]
[1728516792166,0.08752656,2368.9,2368.8,4.22153]
[1728516792349,4.22086,2369.2,2368.9,0.8254]
[1728516793266,4.22066,2369.3,2368.9,5.04676]
[1728516793564,4.22068,2369.3,2368.9,0.8254]
[1728516794637,4.22088,2369.2,2368.9,0.8254]
[1728516799804,5.0085,2369.4,2368.9,0.8254]
[1728516799959,4.22083,2369.2,2368.9,0.8254]
[1728516800153,4.22083,2369.2,2368.9,2.04839543]
[1728516802156,0.08738072,2369.1,2368.9,2.04839543]
[1728516803371,0.08738072,2369.1,2368.9,0.8254]
[1728516810272,4.22085,2369.2,2368.9,0.8254]
[1728516810474,0.08738072,2369.1,2368.9,0.8254]
[1728516811104,4.22067,2369.3,2368.9,0.8254]
[1728516811105,8.44142,2369.3,2368.9,0.8254]
[1728516811311,0.08738072,2369.0,2368.9,0.8254]
[1728516811485,4.22084,2369.2,2368.9,1.9376172]
[1728516811684,0.08738072,2369.0,2368.9,0.8254]
[1728516811887,4.22067,2369.3,2368.9,0.8254]
[1728516812428,0.08738072,2369.2,2368.9,0.8254]
[1728516812911,0.08738072,2369.1,2368.9,0.8254]
[1728516813213,8.44147,2369.3,2368.9,1.9376172]
[1728516813373,0.08738072,2369.0,2368.9,0.8254]
[1728516813779,4.22084,2369.2,2368.9,0.8254]
[1728516813975,0.08738072,2369.0,2368.9,0.8254]
[1728516814480,4.22084,2369.2,2368.9,0.8254]
[1728516814681,0.08738072,2369.0,2368.9,0.8254]
[1728516815004,4.22084,2369.2,2368.9,1.51545521]
[1728516815312,4.22084,2369.2,2368.9,0.8254]
[1728516815516,0.08738072,2369.1,2368.9,0.8254]
[1728516818309,4.22067,2369.3,2368.9,0.8254]
[1728516818477,0.08739339,2369.0,2368.9,0.90982057]
[1728516818679,0.788,2369.4,2368.9,0.90982057]
[1728516818680,4.22039,2369.5,2368.9,7.45029205]
[1728516818883,4.30507859,2369.4,2369.0,0.8027]
[1728516819425,4.30507859,2369.4,2369.0,5.02384]
[1728516820218,4.30507859,2369.4,2369.0,0.8027]
[1728516821749,4.30507859,2369.4,2369.0,5.02385]
[1728516823598,0.08449859,2369.4,2369.0,5.02385]
[1728516823799,0.08449859,2369.4,2369.1,1.23937613]
[1728516824106,0.08449859,2369.4,2369.1,5.46035613]
[1728516824620,0.08449859,2369.4,2369.1,1.23937613]
[1728516838367,4.22111,2369.1,2368.8,0.7532]
[1728516839064,0.08460654,2369.0,2368.8,0.7532]
[1728516840472,5.98558392,2369.2,2368.8,0.7532]
[1728516840671,0.08460654,2368.9,2368.8,0.7532]
[1728516840962,0.08460654,2368.9,2368.8,1.672868]
[1728516841337,5.98558392,2369.2,2368.8,1.672868]
[1728516841568,0.08460654,2368.9,2368.8,0.7532]
[1728516841770,4.22092,2369.2,2368.8,0.7532]
[1728516841975,0.08460654,2368.9,2368.8,0.7532]
[1728516842179,8.4419,2369.2,2368.8,0.7532]
[1728516842326,0.08460654,2368.9,2368.8,0.7532]
[1728516842530,4.22092,2369.2,2368.8,0.7532]
[1728516842759,0.08460654,2368.9,2368.8,0.7532]
[1728516842961,5.98558392,2369.2,2368.8,0.7532]
[1728516843162,0.08460654,2368.9,2368.8,0.7532]
[1728516843476,5.98558392,2369.2,2368.8,0.7532]